fUSD/lending_fUSD_20241002
["ID","MTS","AMOUNT","RATE_DAILY","PERIOD"]
[339695562,1727869887284,-888.35,0.00022739,2]
[339695563,1727869887799,-6495.52,0.00022739,2]
[339695564,1727869887828,-1020.29,0.00022739,2]
[339695565,1727869887854,-3352.77,0.00022739,2]
[339695566,1727869887879,-3430.38,0.00022739,2]
[339695567,1727869887889,-500.0,0.00022739,2]
[339695568,1727869887899,-500.0,0.00022739,2]
[339695569,1727869887909,-1117.24,0.00022739,2]
[339695570,1727869887919,-500.0,0.00022739,2]
[339695571,1727869887933,-1132.56,0.00022739,2]
[339695572,1727869887943,-880.57,0.00022739,2]
[339695573,1727869887955,-707.2,0.00022739,2]
[339695574,1727869887965,-3228.99,0.00022739,2]
[339695575,1727869887975,-502.16,0.00022739,2]
[339695576,1727869887986,-500.0,0.00022739,2]
[339695577,1727869887995,-682.74,0.00022739,2]
[339695578,1727869888006,-738.51,0.00022739,2]
[339695579,1727869888015,-500.0,0.00022739,2]
[339695580,1727869888025,-968.42,0.00022739,2]
[339695581,1727869888035,-500.0,0.00022739,2]
[339695582,1727869888044,-1406.54,0.00022739,2]
[339695583,1727869888055,-2448.54,0.00022739,2]
[339695584,1727869888064,-848.81,0.00022739,2]
[339695585,1727869888074,-1709.53,0.00022739,2]
[339695586,1727869888083,-500.0,0.00022739,2]
[339695587,1727869888093,-500.0,0.00022739,2]
[339695588,1727869888103,-1553.71,0.00022739,2]
[339695589,1727869888112,-1194.43,0.00022739,2]
[339695590,1727869888121,-628.44,0.00022739,2]
[339695591,1727869888131,-500.0,0.00022739,2]
[339695592,1727869888140,-150.0,0.00022749,2]
[339695593,1727869888150,-150.5,0.00022751,30]
[339695594,1727869888159,-150.0,0.00022755,2]
[339695595,1727869888169,-150.5,0.00022761,30]
[339695596,1727869888179,-150.5,0.00022771,30]
[339695597,1727869888188,-500.0,0.00022773,2]
[339695598,1727869888199,-150.0,0.00022777,2]
[339695599,1727869888210,-500.0,0.00022781,15]
[339695600,1727869888220,-500.0,0.00022781,2]
[339695601,1727869888233,-501.48,0.00022781,2]
[339695602,1727869888246,-500.0,0.00022781,2]
[339695603,1727869888256,-811.94,0.00022781,2]
[339695604,1727869888266,-500.0,0.00022781,2]
[339695605,1727869888275,-500.0,0.00022781,2]
[339695606,1727869888286,-677.94,0.00022781,2]
[339695607,1727869888295,-1158.57,0.00022781,2]
[339695608,1727869888305,-555.18339766,0.00022781,2]
[339695609,1727869888314,-500.0,0.00022781,2]
[339695610,1727869888324,-949.49,0.00022781,2]
[339695611,1727869888333,-734.7,0.00022781,2]
[339695612,1727869888343,-500.92201535,0.00022781,2]
[339695613,1727869888352,-500.0,0.00022781,2]
[339695614,1727869888361,-500.0,0.00022781,2]
[339695615,1727869888371,-500.0,0.00022781,2]
[339695616,1727869888380,-1575.29,0.00022781,2]
[339695617,1727869888390,-582.72,0.00022781,2]
[339695618,1727869888400,-500.0,0.00022781,2]
[339695619,1727869888412,-500.0,0.00022781,2]
[339695620,1727869888422,-626.44,0.00022781,2]
[339695621,1727869888432,-1190.66,0.00022781,2]
[339695622,1727869888443,-2536.33,0.00022781,2]
[339695623,1727869888453,-2331.44,0.00022781,2]
[339695624,1727869888464,-2214.7,0.00022781,2]
[339695625,1727869888474,-500.0,0.00022781,2]
[339695626,1727869888486,-2055.94,0.00022781,2]
[339695627,1727869888499,-500.0,0.00022781,2]
[339695628,1727869888509,-500.0,0.00022781,2]
[339695629,1727869888520,-500.0,0.00022781,2]
[339695630,1727869888530,-1181.53,0.00022781,2]
[339695631,1727869888540,-500.0,0.00022781,2]
[339695632,1727869888550,-3113.85,0.00022781,2]
[339695633,1727869888560,-500.0,0.00022781,2]
[339695634,1727869888570,-500.0,0.00022781,2]
[339695635,1727869888580,-500.0,0.00022781,2]
[339695636,1727869888590,-500.0,0.00022781,2]
[339695637,1727869888600,-954.97,0.00022781,2]
[339695638,1727869888609,-3272.25,0.00022781,2]
[339695639,1727869888619,-514.03,0.00022781,2]
[339695640,1727869888629,-500.0,0.00022781,2]
[339695641,1727869888638,-1329.92,0.00022781,2]
[339695642,1727869888648,-2132.25,0.00022781,2]
[339695643,1727869888658,-500.0,0.00022781,2]
[339695644,1727869888668,-3120.51,0.00022781,2]
[339695645,1727869888679,-3249.87,0.00022781,2]
[339695646,1727869888689,-500.0,0.00022781,2]
[339695647,1727869888700,-1833.21,0.00022781,2]
[339695648,1727869888710,-500.0,0.00022781,2]
[339695649,1727869888719,-162.53412255,0.00022786,2]
[339695650,1727869888730,-500.0,0.00022791,2]
[339695651,1727869888740,-615.13,0.00022791,2]
[339695652,1727869888749,-689.3,0.00022791,2]
[339695653,1727869888759,-1015.62,0.00022791,2]
[339695654,1727869888769,-500.0,0.00022791,2]
[339695655,1727869888779,-1202.84,0.00022791,2]
[339695656,1727869888788,-500.0,0.00022791,2]
[339695657,1727869888798,-808.31,0.00022791,2]
[339695658,1727869888809,-1229.27,0.00022791,2]
[339695659,1727869888819,-711.21,0.00022791,2]
[339695660,1727869888828,-500.0,0.00022791,2]
[339695661,1727869888839,-1084.12,0.00022791,2]
[339695662,1727869888848,-500.0,0.00022791,2]
[339695663,1727869888858,-500.0,0.00022791,2]
[339695664,1727869888869,-500.0,0.00022791,2]
[339695665,1727869888878,-500.0,0.00022791,2]
[339695666,1727869888888,-920.35,0.00022791,2]
[339695667,1727869888897,-500.0,0.00022791,2]
[339695668,1727869888906,-500.0,0.00022791,2]
[339695669,1727869888916,-722.01,0.00022791,2]
[339695670,1727869888927,-621.72,0.00022791,2]
[339695671,1727869888937,-500.0,0.00022791,2]
[339695672,1727869888947,-1148.26,0.00022791,2]
[339695673,1727869888956,-500.0,0.00022791,2]
[339695674,1727869888967,-1290.73,0.00022791,2]
[339695675,1727869888977,-500.0,0.00022791,2]
[339695676,1727869888987,-500.0,0.00022791,2]
[339695677,1727869888997,-500.0,0.00022791,2]
[339695678,1727869889008,-500.0,0.00022791,2]
[339695679,1727869889017,-567.63,0.00022791,2]
[339695680,1727869889027,-199.95611,0.00022791,2]
[339695681,1727869889037,-500.0,0.00022791,2]
[339695682,1727869889046,-500.0,0.00022791,2]
[339695683,1727869889057,-500.0,0.00022791,2]
[339695684,1727869889067,-500.0,0.00022791,2]
[339695685,1727869889077,-1204.46,0.00022791,2]
[339695686,1727869889086,-999.69,0.00022791,2]
[339695687,1727869889097,-1963.92,0.00022791,2]
[339695688,1727869889107,-665.58,0.00022791,2]
[339695689,1727869889117,-500.0,0.00022791,2]
[339695690,1727869889127,-711.49,0.00022791,2]
[339695691,1727869889136,-619.99,0.00022791,2]
[339695692,1727869889146,-590.9,0.00022791,2]
[339695693,1727869889155,-844.29,0.00022791,2]
[339695694,1727869889164,-500.0,0.00022791,2]
[339695695,1727869889174,-801.84,0.00022791,2]
[339695696,1727869889184,-500.0,0.00022791,2]
[339695697,1727869889194,-500.0,0.00022791,2]
[339695698,1727869889204,-500.0,0.00022791,2]
[339695699,1727869889214,-616.35,0.00022791,2]
[339695700,1727869889224,-1407.55,0.00022791,2]
[339695701,1727869889236,-2264.57,0.00022791,2]
[339695702,1727869889246,-1920.95,0.00022791,2]
[339695703,1727869889256,-568.58,0.00022791,2]
[339695704,1727869889265,-1453.71,0.00022791,2]
[339695705,1727869889275,-185.80714922,0.00022791,2]
[339695706,1727869889285,-500.0,0.00022791,2]
[339695707,1727869889295,-150.0,0.00022791,2]
[339695708,1727869889306,-500.0,0.00022791,2]
[339695709,1727869889317,-1753.24,0.00022791,2]
[339695710,1727869889327,-750.98,0.00022791,2]
[339695711,1727869889336,-2203.62,0.00022791,2]
[339695712,1727869889346,-983.09,0.00022791,2]
[339695713,1727869889357,-659.66,0.00022791,2]
[339695714,1727869889367,-500.0,0.00022791,2]
[339695715,1727869889376,-931.83,0.00022791,2]
[339695716,1727869889387,-2897.78,0.00022791,2]
[339695717,1727869889397,-327.65,0.00022867,2]
[339695718,1727869889407,-167.0,0.00022874,2]
[339695719,1727869889417,-200.0,0.00022893,2]
[339695720,1727869889427,-2000.0,0.00022893,2]
[339695721,1727869889436,-200.0,0.00022893,2]
[339695722,1727869889447,-200.0,0.00022893,2]
[339695723,1727869889456,-2000.0,0.00022893,2]
[339695724,1727869889466,-1500.0,0.000229,8]
[339695725,1727869889476,-4138.73102975,0.0002292,2]
[339695726,1727869889489,-550.0,0.00023,2]
[339695727,1727869889499,-200.0,0.00023,2]
[339695728,1727869889509,-500.0,0.00023012,2]
[339695729,1727869889518,-500.0,0.00023012,2]
[339695730,1727869889528,-3777.06872699,0.00023013,15]
[339695731,1727869889538,-500.0,0.00023013,2]
[339695732,1727869889548,-500.0,0.00023013,2]
[339695733,1727869889557,-500.0,0.00023013,2]
[339695734,1727869889567,-500.0,0.00023013,2]
[339695735,1727869889578,-500.0,0.00023013,2]
[339695736,1727869889587,-500.0,0.00023013,2]
[339695737,1727869889597,-500.0,0.00023013,2]
[339695738,1727869889608,-500.0,0.00023013,2]
[339695739,1727869889617,-500.0,0.00023013,2]
[339695740,1727869889629,-500.0,0.00023013,2]
[339695741,1727869889638,-1585.55,0.00023013,2]
[339695742,1727869889649,-668.91,0.00023013,2]
[339695743,1727869889658,-500.0,0.00023013,2]
[339695744,1727869889668,-985.05,0.00023013,2]
[339695745,1727869889678,-500.0,0.00023013,2]
[339695746,1727869889688,-1229.26,0.00023013,2]
[339695747,1727869889697,-500.0,0.00023013,2]
[339695748,1727869889707,-500.0,0.00023013,2]
[339695749,1727869889717,-500.0,0.00023013,2]
[339695750,1727869889727,-500.0,0.00023013,2]
[339695751,1727869889738,-712.89,0.00023013,2]
[339695752,1727869889749,-500.0,0.00023013,2]
[339695753,1727869889759,-500.0,0.00023013,2]
[339695754,1727869889769,-500.0,0.00023013,2]
[339695755,1727869889778,-400.14353254,0.00023013,2]
[339695756,1727869889788,-2666.71,0.00023013,2]
[339695757,1727869889798,-500.0,0.00023013,2]
[339695758,1727869889807,-665.33,0.00023013,2]
[339695759,1727869889816,-500.0,0.00023013,2]
[339695760,1727869889826,-1052.32,0.00023013,2]
[339695761,1727869889836,-634.40082424,0.00023013,2]
[339695762,1727869889845,-500.0,0.00023013,2]
[339695763,1727869889855,-500.0,0.00023013,2]
[339695764,1727869889865,-1327.79,0.00023013,2]
[339695765,1727869889875,-500.0,0.00023013,2]
[339695766,1727869889885,-884.71,0.00023013,2]
[339695767,1727869889895,-500.0,0.00023013,2]
[339695768,1727869889905,-500.0,0.00023013,2]
[339695769,1727869889915,-810.58,0.00023013,2]
[339695770,1727869889930,-500.0,0.00023013,2]
[339695771,1727869889939,-500.0,0.00023013,2]
[339695772,1727869889950,-500.0,0.00023013,2]
[339695773,1727869889960,-500.0,0.00023013,2]
[339695774,1727869889971,-500.0,0.00023013,2]
[339695775,1727869889981,-500.0,0.00023013,2]
[339695776,1727869889991,-500.0,0.00023013,2]
[339695777,1727869890002,-500.0,0.00023013,2]
[339695778,1727869890013,-584.7940763,0.00023013,2]
[339695779,1727869890024,-1859.63,0.00023013,2]
[339695780,1727869890034,-680.9,0.00023013,2]
[339695781,1727869890043,-500.0,0.00023013,2]
[339695782,1727869890053,-500.0,0.00023013,2]
[339695783,1727869890064,-812.04,0.00023013,2]
[339695784,1727869890074,-755.7,0.00023013,2]
[339695785,1727869890083,-500.0,0.00023013,2]
[339695786,1727869890093,-669.31,0.00023013,2]
[339695787,1727869890102,-500.0,0.00023013,2]
[339695788,1727869890113,-618.42,0.00023013,2]
[339695789,1727869890123,-510.21,0.00023013,2]
[339695790,1727869890133,-500.0,0.00023013,2]
[339695791,1727869890143,-967.09,0.00023013,2]
[339695792,1727869890153,-646.61,0.00023013,2]
[339695793,1727869890163,-500.0,0.00023013,2]
[339695794,1727869890173,-1017.63,0.00023013,2]
[339695795,1727869890182,-1249.39,0.00023013,2]
[339695796,1727869890192,-1412.81,0.00023013,2]
[339695797,1727869890203,-500.0,0.00023013,2]
[339695798,1727869890212,-500.0,0.00023013,2]
[339695799,1727869890223,-718.87,0.00023013,2]
[339695800,1727869890233,-500.0,0.00023013,2]
[339695801,1727869890243,-855.4,0.00023013,2]
[339695802,1727869890253,-500.0,0.00023013,2]
[339695803,1727869890263,-1157.52,0.00023013,2]
[339695804,1727869890273,-500.0,0.00023013,2]
[339695805,1727869890283,-643.98,0.00023013,2]
[339695806,1727869890292,-500.0,0.00023013,2]
[339695807,1727869890302,-500.0,0.00023013,2]
[339695808,1727869890312,-500.0,0.00023013,2]
[339695809,1727869890322,-1588.3,0.00023013,2]
[339695810,1727869890332,-500.0,0.00023013,2]
[339695811,1727869890342,-524.95,0.00023013,2]
[339695812,1727869890353,-500.0,0.00023013,2]
[339695813,1727869890363,-593.26,0.00023013,2]
[339695814,1727869890373,-500.0,0.00023013,2]
[339695815,1727869890383,-779.27,0.00023013,2]
[339695816,1727869890393,-959.91,0.00023013,2]
[339695817,1727869890404,-500.0,0.00023013,2]
[339695818,1727869890413,-500.0,0.00023013,2]
[339695819,1727869890424,-500.0,0.00023013,2]
[339695820,1727869890434,-500.0,0.00023013,2]
[339695821,1727869890444,-500.0,0.00023013,2]
[339695822,1727869890454,-767.3,0.00023013,2]
[339695823,1727869890463,-284.63,0.00023013,2]
[339695824,1727869890473,-500.0,0.00023013,2]
[339695825,1727869890680,-500.0,0.00023013,2]
[339695826,1727869890716,-500.0,0.00023013,2]
[339695827,1727869890746,-578.47,0.00023013,2]
[339695828,1727869890757,-1184.81,0.00023013,2]
[339695829,1727869890767,-1390.14,0.00023013,2]
[339695830,1727869890776,-1545.38,0.00023013,2]
[339695831,1727869890787,-500.0,0.00023013,2]
[339695832,1727869890797,-1552.98,0.00023013,2]
[339695833,1727869890807,-500.0,0.00023013,2]
[339695834,1727869890817,-805.91,0.00023013,2]
[339695835,1727869890826,-500.0,0.00023013,2]
[339695836,1727869890837,-741.36,0.00023013,2]
[339695837,1727869890847,-755.85,0.00023013,2]
[339695838,1727869890857,-500.0,0.00023013,2]
[339695839,1727869890866,-500.0,0.00023013,2]
[339695840,1727869890876,-500.0,0.00023013,2]
[339695841,1727869890885,-500.0,0.00023013,2]
[339695842,1727869890895,-500.0,0.00023013,2]
[339695843,1727869890904,-610.0,0.00023013,2]
[339695844,1727869890914,-500.0,0.00023013,2]
[339695845,1727869890925,-778.9,0.00023013,2]
[339695846,1727869890939,-1369.29,0.00023013,2]
[339695847,1727869890949,-801.0,0.00023013,2]
[339695848,1727869890958,-548.03,0.00023013,2]
[339695849,1727869890967,-500.0,0.00023013,2]
[339695850,1727869890977,-1420.73,0.00023013,2]
[339695851,1727869890991,-771.62,0.00023013,2]
[339695852,1727869891000,-767.84,0.00023013,2]
[339695853,1727869891011,-500.0,0.00023013,2]
[339695854,1727869891022,-500.0,0.00023013,2]
[339695855,1727869891031,-500.0,0.00023013,2]
[339695856,1727869891041,-500.0,0.00023013,2]
[339695857,1727869891051,-500.0,0.00023013,2]
[339695858,1727869891060,-889.03,0.00023013,2]
[339695859,1727869891070,-500.0,0.00023013,2]
[339695860,1727869891080,-500.0,0.00023013,2]
[339695861,1727869891089,-500.0,0.00023013,2]
[339695862,1727869891100,-641.09,0.00023013,2]
[339695863,1727869891110,-500.0,0.00023013,2]
[339695864,1727869891119,-500.0,0.00023013,2]
[339695865,1727869891130,-551.81,0.00023013,2]
[339695866,1727869891139,-500.0,0.00023013,2]
[339695867,1727869891149,-678.78,0.00023013,2]
[339695868,1727869891159,-500.0,0.00023013,2]
[339695869,1727869891169,-500.0,0.00023013,2]
[339695870,1727869891179,-1109.34,0.00023013,2]
[339695871,1727869891188,-500.0,0.00023013,2]
[339695872,1727869891198,-500.0,0.00023013,2]
[339695873,1727869891207,-500.0,0.00023013,2]
[339695874,1727869891217,-500.0,0.00023013,2]
[339695875,1727869891227,-983.59,0.00023013,2]
[339695876,1727869891239,-1062.54,0.00023013,2]
[339695877,1727869891249,-1270.09,0.00023013,2]
[339695878,1727869891258,-1402.36,0.00023013,2]
[339695879,1727869891268,-820.49,0.00023013,2]
[339695880,1727869891277,-801.41,0.00023013,2]
[339695881,1727869891287,-713.08,0.00023013,2]
[339695882,1727869891296,-678.56,0.00023013,2]
[339695883,1727869891306,-500.0,0.00023013,2]
[339695884,1727869891316,-500.0,0.00023013,2]
[339695885,1727869891325,-500.0,0.00023013,2]
[339695886,1727869891335,-500.0,0.00023013,2]
[339695887,1727869891346,-500.0,0.00023013,2]
[339695888,1727869891356,-1293.47,0.00023013,2]
[339695889,1727869891366,-902.63,0.00023013,5]
[339695890,1727869891376,-1343.58,0.00023013,2]
[339695891,1727869891386,-500.0,0.00023013,2]
[339695892,1727869891396,-500.0,0.00023013,2]
[339695893,1727869891406,-616.78,0.00023013,2]
[339695894,1727869891416,-814.56,0.00023013,2]
[339695895,1727869891426,-500.0,0.00023013,2]
[339695896,1727869891435,-2604.16,0.00023013,2]
[339695897,1727869891445,-833.59480245,0.00023013,2]
[339695898,1727869892156,-591.17519755,0.00023013,2]
[339695899,1727869892166,-500.0,0.00023013,2]
[339695900,1727869892176,-500.0,0.00023013,2]
[339695901,1727869892186,-500.0,0.00023013,2]
[339695902,1727869892195,-942.76,0.00023013,2]
[339695903,1727869892204,-770.38,0.00023013,2]
[339695904,1727869892216,-500.0,0.00023013,2]
[339695905,1727869892226,-500.0,0.00023013,2]
[339695906,1727869892239,-500.0,0.00023013,2]
[339695907,1727869892248,-535.73,0.00023013,2]
[339695908,1727869892258,-299.08780245,0.00023013,2]
[339695909,1727869892271,-200.91219755,0.00023013,2]
[339695910,1727869892280,-125.23925687,0.00023013,2]
[339695911,1727869892355,-851.07,0.00022739,2]
[339695912,1727869892365,-356.734,0.00023013,2]
[339695913,1727869892376,-18.02674313,0.00023013,2]
[339695914,1727869892388,-500.0,0.00023013,2]
[339695915,1727869892397,-382.40995847,0.00023013,2]
[339695916,1727869892410,-391.34792843,0.00023013,2]
[339695917,1727869892421,-283.0221131,0.00023013,2]
[339695918,1727869892431,-102.83059322,0.00023013,2]
[339695919,1727869892442,-614.905684,0.00023013,2]
[339695920,1727869893349,-230.61181948,0.000219,4]
[339695921,1727869893359,-500.0,0.00021917,2]
[339695922,1727869893369,-151.0,0.00021917,2]
[339695923,1727869893380,-151.0,0.00021917,2]
[339695924,1727869893389,-151.0,0.00021917,2]
[339695925,1727869893399,-500.0,0.00022191,2]
[339695926,1727869893409,-500.0,0.00022465,2]
[339695927,1727869893419,-500.0,0.00022739,2]
[339695928,1727869893429,-257.67372278,0.00023013,2]
[339695929,1727869893439,-500.0,0.00023013,2]
[339695930,1727869893449,-1210.32,0.00023013,2]
[339695931,1727869893459,-1078.55,0.00023013,2]
[339695932,1727869893469,-682.08,0.00023013,2]
[339695933,1727869893478,-439.23371687,0.00023013,2]
[339695934,1727869893489,-500.0,0.00023013,2]
[339695935,1727869893499,-500.0,0.00023013,2]
[339695936,1727869893508,-500.0,0.00023013,2]
[339695937,1727869893518,-1189.26,0.00023013,2]
[339695938,1727869893529,-2785.63,0.00023013,2]
[339695939,1727869893539,-1948.92,0.00023013,2]
[339695940,1727869893548,-858.38,0.00023013,2]
[339695941,1727869893558,-241.36,0.00023013,2]
[339695942,1727869893568,-941.68,0.00023013,2]
[339695943,1727869893577,-500.0,0.00023013,2]
[339695944,1727869893587,-670.24,0.00023013,2]
[339695945,1727869893597,-594.79,0.00023013,2]
[339695946,1727869893607,-500.0,0.00023013,2]
[339695947,1727869893617,-500.0,0.00023013,2]
[339695948,1727869893627,-5341.96,0.00023013,2]
[339695949,1727869893637,-643.1,0.00023013,2]
[339695950,1727869893646,-500.0,0.00023013,2]
[339695951,1727869893655,-439.2542719,0.00023013,2]
[339695952,1727869893665,-2099.58,0.00023013,2]
[339695953,1727869893674,-500.0,0.00023013,2]
[339695954,1727869893683,-500.0,0.00023013,2]
[339695955,1727869893693,-500.0,0.00023013,2]
[339695956,1727869893702,-1567.72,0.00023013,2]
[339695957,1727869893711,-500.0,0.00023013,2]
[339695958,1727869893721,-779.17,0.00023013,2]
[339695959,1727869893730,-583.96066723,0.00023013,2]
[339695960,1727869893741,-500.0,0.00023013,2]
[339695961,1727869893750,-1062.28,0.00023013,2]
[339695962,1727869893760,-500.0,0.00023013,2]
[339695963,1727869893770,-1060.35,0.00023013,2]
[339695964,1727869893781,-1203.86,0.00023013,2]
[339695965,1727869893791,-907.55,0.00023013,2]
[339695966,1727869893801,-500.0,0.00023013,2]
[339695967,1727869893810,-941.43,0.00023013,2]
[339695968,1727869893820,-500.0,0.00023013,2]
[339695969,1727869893829,-500.0,0.00023013,2]
[339695970,1727869893839,-500.0,0.00023013,2]
[339695971,1727869893848,-500.0,0.00023013,2]
[339695972,1727869893858,-567.36,0.00023013,2]
[339695973,1727869893868,-1924.96,0.00023013,2]
[339695974,1727869893878,-500.0,0.00023013,2]
[339695975,1727869893888,-2570.66,0.00023013,2]
[339695976,1727869893897,-504.18,0.00023013,2]
[339695977,1727869893907,-500.0,0.00023013,2]
[339695978,1727869893916,-1377.52,0.00023013,2]
[339695979,1727869893929,-500.0,0.00023013,2]
[339695980,1727869893945,-1694.56,0.00023013,2]
[339695981,1727869893954,-535.92,0.00023013,2]
[339695982,1727869893964,-500.0,0.00023013,2]
[339695983,1727869893975,-1037.69,0.00023013,2]
[339695984,1727869893984,-500.0,0.00023013,2]
[339695985,1727869893994,-500.0,0.00023013,2]
[339695986,1727869894004,-1154.29,0.00023013,2]
[339695987,1727869894019,-500.0,0.00023013,2]
[339695988,1727869894030,-500.0,0.00023013,2]
[339695989,1727869894039,-500.0,0.00023013,2]
[339695990,1727869894049,-1331.73,0.00023013,2]
[339695991,1727869894059,-5235.58,0.00023013,2]
[339695992,1727869894070,-500.0,0.00023013,2]
[339695993,1727869894080,-910.92,0.00023013,2]
[339695994,1727869894090,-500.0,0.00023013,2]
[339695995,1727869894099,-500.0,0.00023013,2]
[339695996,1727869894108,-2072.97,0.00023013,2]
[339695997,1727869894118,-500.0,0.00023013,2]
[339695998,1727869894128,-3299.68,0.00023013,2]
[339695999,1727869894139,-1395.77,0.00023013,2]
[339696000,1727869894148,-500.0,0.00023013,2]
[339696001,1727869894158,-505.17893532,0.00023013,2]
[339696002,1727869894167,-279.60920536,0.00023013,2]
[339696003,1727869894178,-500.0,0.00023013,2]
[339696004,1727869894188,-500.0,0.00023013,2]
[339696005,1727869894198,-717.11,0.00023013,2]
[339696006,1727869894207,-500.0,0.00023013,2]
[339696007,1727869894216,-500.0,0.00023013,2]
[339696008,1727869894225,-6239.89,0.00023013,2]
[339696009,1727869894237,-594.23,0.00023013,2]
[339696010,1727869894247,-657.08,0.00023013,2]
[339696011,1727869894256,-934.49,0.00023013,2]
[339696012,1727869894266,-500.0,0.00023013,2]
[339696013,1727869894276,-2362.21,0.00023013,2]
[339696014,1727869894285,-500.0,0.00023013,2]
[339696015,1727869894295,-500.0,0.00023013,2]
[339696016,1727869894304,-1282.02,0.00023013,2]
[339696017,1727869894313,-500.0,0.00023013,2]
[339696018,1727869894322,-621.95,0.00023013,2]
[339696019,1727869894331,-594.39,0.00023013,2]
[339696020,1727869894340,-500.0,0.00023013,2]
[339696021,1727869894350,-500.0,0.00023013,2]
[339696022,1727869894360,-500.0,0.00023013,2]
[339696023,1727869894369,-500.0,0.00023013,2]
[339696024,1727869894378,-654.11,0.00023013,2]
[339696025,1727869894388,-2484.06,0.00023013,2]
[339696026,1727869894397,-553.95,0.00023013,2]
[339696027,1727869894406,-500.0,0.00023013,2]
[339696028,1727869894416,-541.19304554,0.00023013,2]
[339696029,1727869894425,-1100.5,0.00023013,2]
[339696030,1727869894435,-2044.12,0.00023013,2]
[339696031,1727869894445,-1595.01,0.00023013,2]
[339696032,1727869894455,-500.0,0.00023013,2]
[339696033,1727869894465,-2887.75,0.00023013,2]
[339696034,1727869894475,-500.0,0.00023013,2]
[339696035,1727869894486,-2169.69,0.00023013,2]
[339696036,1727869894496,-1549.67,0.00023013,2]
[339696037,1727869894505,-2305.86,0.00023013,2]
[339696038,1727869894515,-500.0,0.00023013,2]
[339696039,1727869894525,-500.0,0.00023013,2]
[339696040,1727869894535,-500.0,0.00023013,2]
[339696041,1727869894544,-4429.03,0.00023013,2]
[339696042,1727869894554,-500.0,0.00023013,2]
[339696043,1727869894564,-500.0,0.00023013,2]
[339696044,1727869894574,-500.0,0.00023013,2]
[339696045,1727869894585,-2507.39,0.00023013,2]
[339696046,1727869894594,-1324.08,0.00023013,2]
[339696047,1727869894604,-948.06,0.00023013,2]
[339696048,1727869894614,-1133.03,0.00023013,2]
[339696049,1727869894624,-500.0,0.00023013,2]
[339696050,1727869894634,-500.0,0.00023013,2]
[339696051,1727869894644,-2644.67,0.00023013,2]
[339696052,1727869894654,-500.0,0.00023013,2]
[339696053,1727869894665,-1029.87,0.00023013,2]
[339696054,1727869894676,-693.45,0.00023013,2]
[339696055,1727869894685,-911.95,0.00023013,2]
[339696056,1727869894695,-500.0,0.00023013,2]
[339696057,1727869894704,-500.0,0.00023013,2]
[339696058,1727869894714,-500.0,0.00023013,2]
[339696059,1727869894723,-680.01,0.00023013,2]
[339696060,1727869894733,-2554.46,0.00023013,2]
[339696061,1727869894753,-3104.41,0.00023013,2]